[Event "7° Rencontres Internationales des Echecs Francophones"]
[Site "PARIS, France"]
[Date "2019.08.10"]
[Round "7.3"]
[White "Aloma Vidal, Robert"]
[Black "Le Roux, Jean-Pierre"]
[Result "0-1"]
[TimeControl "90'+30' + 30seconds/move"]
[WhiteElo "2417"]
[BlackElo "2535"]

1. d4 {[%clk 00:05:05]} {[%emt 00:09:31]} g6 {[%clk 00:05:06]} 2. Nf3 {[%clk
00:05:06]} {[%emt 00:00:03]} Bg7 {[%clk 00:05:08]} {[%emt 00:00:01]} 3. g3
{[%clk 00:05:08]} c5 {[%clk 00:05:10]} {[%emt 00:00:01]} 4. c3 {[%clk
00:05:05]} {[%emt 00:00:07]} cxd4 {[%clk 00:04:34]} {[%emt 00:00:38]} 5. cxd4
{[%clk 00:05:06]} {[%emt 00:00:02]} Nf6 {[%clk 00:04:34]} {[%emt 00:00:03]} 6.
Bg2 {[%clk 00:05:08]} O-O {[%clk 00:04:36]} {[%emt 00:00:01]} 7. O-O {[%clk
00:05:10]} {[%emt 00:00:02]} d6 {[%clk 00:04:37]} {[%emt 00:00:02]} 8. Nc3
{[%clk 00:05:10]} {[%emt 00:00:02]} Nc6 {[%clk 00:04:29]} {[%emt 00:00:11]} 9.
d5 {[%clk 00:04:59]} {[%emt 00:00:14]} Na5 {[%clk 00:04:01]} {[%emt 00:00:31]}
10. h3 {[%clk 00:04:52]} {[%emt 00:00:10]} Bd7 {[%clk 00:03:58]} {[%emt
00:00:07]} 11. Nd4 {[%clk 00:04:24]} {[%emt 00:00:30]} Qb6 {[%clk 00:03:56]}
{[%emt 00:00:05]} 12. b3 {[%clk 00:03:43]} {[%emt 00:00:44]} Rfc8 {[%clk
00:03:31]} {[%emt 00:00:27]} 13. Qd2 {[%clk 00:01:15]} {[%emt 00:02:31]} Qb4
{[%clk 00:02:41]} {[%emt 00:00:53]} 14. Bb2 {[%clk 00:01:02]} {[%emt 00:00:16]}
Nxd5 {[%clk 00:02:30]} {[%emt 00:00:15]} 15. Bxd5 {[%clk 00:00:40]} {[%emt
00:00:25]} Qxd4 {[%clk 00:02:12]} {[%emt 00:00:20]} 16. Qxd4 {[%clk 00:00:38]}
{[%emt 00:00:06]} Bxd4 {[%clk 00:02:14]} 17. Rfc1 {[%clk 00:00:36]} {[%emt
00:00:05]} Bxh3 {[%clk 00:02:04]} {[%emt 00:00:12]} 18. e3 {[%clk 00:00:37]}
{[%emt 00:00:02]} Bg7 {[%clk 00:02:00]} {[%emt 00:00:08]} 19. Na4 {[%clk
00:00:31]} {[%emt 00:00:09]} Bd7 {[%clk 00:01:36]} {[%emt 00:00:26]} 20. Bxg7
{[%clk 00:00:28]} {[%emt 00:00:05]} Kxg7 {[%clk 00:01:38]} {[%emt 00:00:02]} 21.
Nb2 {[%clk 00:00:27]} {[%emt 00:00:03]} Bc6 {[%clk 00:01:35]} {[%emt 00:00:06]}
22. Bxc6 {[%clk 00:00:28]} {[%emt 00:00:03]} Nxc6 {[%clk 00:01:36]} {[%emt
00:00:02]} 23. Nd3 {[%clk 00:00:29]} {[%emt 00:00:01]} e6 {[%clk 00:01:19]}
{[%emt 00:00:20]} 24. Kg2 {[%clk 00:00:31]} Ne7 {[%clk 00:01:21]} 25. Rd1
{[%clk 00:00:33]} {[%emt 00:00:01]} d5 {[%clk 00:01:21]} {[%emt 00:00:04]} 26.
Rd2 {[%clk 00:00:33]} {[%emt 00:00:02]} Nf5 {[%clk 00:01:21]} {[%emt 00:00:03]}
27. Ne5 {[%clk 00:00:34]} {[%emt 00:00:03]} Rc7 {[%clk 00:01:21]} {[%emt
00:00:02]} 28. g4 {[%clk 00:00:31]} {[%emt 00:00:06]} Nd6 {[%clk 00:01:23]}
{[%emt 00:00:01]} 29. Rh1 {[%clk 00:00:31]} {[%emt 00:00:03]} h6 {[%clk
00:01:09]} {[%emt 00:00:18]} 30. Rd4 {[%clk 00:00:32]} {[%emt 00:00:01]} Rac8
{[%clk 00:01:08]} {[%emt 00:00:04]} 31. Nf3 {[%clk 00:00:22]} {[%emt 00:00:13]}
Rc2 {[%clk 00:01:01]} {[%emt 00:00:10]} 32. g5 {[%clk 00:00:24]} h5 {[%clk
00:01:02]} {[%emt 00:00:04]} 33. a4 {[%clk 00:00:20]} {[%emt 00:00:07]} Ne4
{[%clk 00:01:02]} {[%emt 00:00:03]} 34. Rf1 {[%clk 00:00:22]} Rb2 {[%clk
00:00:59]} {[%emt 00:00:06]} 35. Rb4 {[%clk 00:00:23]} {[%emt 00:00:02]} b6
{[%clk 00:01:01]} 36. Nd4 {[%clk 00:00:24]} {[%emt 00:00:01]} Nxg5 {[%clk
00:00:53]} {[%emt 00:00:11]} 37. a5 {[%clk 00:00:27]} h4 {[%clk 00:00:41]}
{[%emt 00:00:14]} 38. axb6 {[%clk 00:00:27]} {[%emt 00:00:03]} axb6 {[%clk
00:00:44]} 39. Rxb6 {[%clk 00:00:28]} {[%emt 00:00:01]} h3+ {[%clk 00:00:46]}
40. Kg3 {[%clk 00:00:29]} {[%emt 00:00:03]} Rh8 {[%clk 00:00:39]} {[%emt
00:00:09]} 41. Rb7 {[%clk 00:00:28]} {[%emt 00:00:04]} Kf6 {[%clk 00:00:41]}
{[%emt 00:00:02]} 42. Kh2 {[%clk 00:00:23]} {[%emt 00:00:07]} Ne4 {[%clk
00:00:37]} {[%emt 00:00:06]} 43. Rc7 {[%clk 00:00:15]} {[%emt 00:00:12]} Rxf2+
{[%clk 00:00:32]} {[%emt 00:00:08]} 44. Rxf2+ {[%clk 00:00:17]} {[%emt
00:00:02]} Nxf2 {[%clk 00:00:34]} 45. Nf3 {[%clk 00:00:13]} {[%emt 00:00:07]}
Ng4+ {[%clk 00:00:35]} {[%emt 00:00:02]} 46. Kh1 {[%clk 00:00:14]} {[%emt
00:00:01]} Nxe3 {[%clk 00:00:31]} {[%emt 00:00:07]} 47. b4 {[%clk 00:00:17]}
Rb8 {[%clk 00:00:32]} {[%emt 00:00:03]} 48. Rc3 {[%clk 00:00:17]} {[%emt
00:00:02]} Nc4 {[%clk 00:00:25]} {[%emt 00:00:10]} 49. Rb3 {[%clk 00:00:17]}
{[%emt 00:00:02]} e5 {[%clk 00:00:27]} {[%emt 00:00:02]} 50. b5 {[%clk
00:00:18]} {[%emt 00:00:02]} Ke7 {[%clk 00:00:28]} {[%emt 00:00:02]} 51. Kh2
{[%clk 00:00:19]} {[%emt 00:00:02]} Kd6 {[%clk 00:00:29]} {[%emt 00:00:01]} 52.
Ng5 {[%clk 00:00:20]} {[%emt 00:00:03]} f5 {[%clk 00:00:31]} {[%emt 00:00:02]}
53. Kxh3 {[%clk 00:00:19]} {[%emt 00:00:03]} d4 {[%clk 00:00:27]} {[%emt
00:00:07]} 54. Kg2 {[%clk 00:00:20]} {[%emt 00:00:02]} Kd5 {[%clk 00:00:29]}
{[%emt 00:00:01]} 55. Kf2 {[%clk 00:00:22]} {[%emt 00:00:01]} e4 {[%clk
00:00:31]} {[%emt 00:00:02]} 56. Nh3 {[%clk 00:00:21]} {[%emt 00:00:03]} Kc5
{[%clk 00:00:29]} {[%emt 00:00:05]} 57. Nf4 {[%clk 00:00:23]} {[%emt 00:00:01]}
Rxb5 {[%clk 00:00:25]} {[%emt 00:00:08]} 58. Ne6+ {[%clk 00:00:25]} Kb6 {[%clk
00:00:27]} 59. Ke1 {[%emt 00:00:20]} 0-1

[Event "7° Rencontres Internationales des Echecs Francophones"]
[Site "PARIS, France"]
[Date "2019.08.10"]
[Round "7.8"]
[White "Bouget, Alexandre"]
[Black "Vedmediuc, Serghei"]
[Result "1-0"]
[TimeControl "90'+30' + 30seconds/move"]
[WhiteElo "2203"]
[BlackElo "2469"]

1. d4 {[%clk 00:05:03]} {[%emt 00:10:32]} Nf6 {[%clk 00:05:03]} {[%emt
00:00:01]} 2. c4 {[%clk 00:05:03]} {[%emt 00:00:01]} g6 {[%clk 00:05:03]} 3.
Nc3 {[%clk 00:05:03]} {[%emt 00:00:01]} Bg7 {[%clk 00:05:03]} 4. e4 {[%emt
00:00:37]} d6 {[%clk 00:04:57]} {[%emt 00:00:15]} 5. Be2 {[%clk 00:05:03]}
{[%emt 00:00:03]} O-O {[%clk 00:04:50]} {[%emt 00:00:11]} 6. Nf3 {[%clk
00:05:05]} c5 {[%clk 00:04:45]} {[%emt 00:00:08]} 7. d5 {[%clk 00:05:05]}
{[%emt 00:00:02]} e6 {[%clk 00:04:46]} {[%emt 00:00:02]} 8. O-O {[%clk
00:05:05]} {[%emt 00:00:03]} exd5 {[%clk 00:04:48]} {[%emt 00:00:01]} 9. exd5
{[%clk 00:05:03]} {[%emt 00:00:05]} Re8 {[%clk 00:04:46]} {[%emt 00:00:05]} 10.
h3 {[%clk 00:04:33]} {[%emt 00:00:33]} Ne4 {[%clk 00:04:41]} {[%emt 00:00:08]}
11. Nxe4 {[%clk 00:04:30]} {[%emt 00:00:06]} Rxe4 {[%clk 00:04:43]} {[%emt
00:00:02]} 12. Bd3 {[%clk 00:04:17]} {[%emt 00:00:16]} Re8 {[%clk 00:04:44]}
{[%emt 00:00:01]} 13. Qc2 {[%clk 00:03:46]} {[%emt 00:00:34]} Na6 {[%clk
00:04:45]} {[%emt 00:00:02]} 14. a3 {[%clk 00:03:45]} {[%emt 00:00:04]} Nc7
{[%clk 00:04:47]} {[%emt 00:00:01]} 15. Bg5 {[%clk 00:03:38]} {[%emt 00:00:10]}
Bf6 {[%clk 00:04:44]} {[%emt 00:00:06]} 16. Bf4 {[%clk 00:03:19]} {[%emt
00:00:22]} b5 {[%clk 00:04:35]} {[%emt 00:00:13]} 17. Rae1 {[%clk 00:02:46]}
{[%emt 00:00:36]} Rxe1 {[%clk 00:04:20]} {[%emt 00:00:17]} 18. Rxe1 {[%clk
00:02:47]} {[%emt 00:00:02]} bxc4 {[%clk 00:04:22]} 19. Bxc4 {[%clk 00:02:38]}
{[%emt 00:00:13]} Rb8 {[%clk 00:04:21]} {[%emt 00:00:03]} 20. Qa4 {[%clk
00:01:58]} {[%emt 00:00:43]} Bb7 {[%clk 00:03:41]} {[%emt 00:00:44]} 21. Rd1
{[%clk 00:01:09]} {[%emt 00:00:52]} a6 {[%clk 00:03:25]} {[%emt 00:00:19]} 22.
b4 {[%clk 00:01:10]} cxb4 {[%clk 00:03:19]} {[%emt 00:00:10]} 23. axb4 {[%clk
00:00:51]} {[%emt 00:00:22]} Bc8 {[%clk 00:03:01]} {[%emt 00:00:21]} 24. Qa5
{[%clk 00:00:51]} {[%emt 00:00:03]} Nb5 {[%clk 00:02:49]} {[%emt 00:00:15]} 25.
Qxd8+ {[%clk 00:00:46]} {[%emt 00:00:07]} Bxd8 {[%clk 00:02:50]} 26. Bxb5
{[%clk 00:00:47]} {[%emt 00:00:03]} Rxb5 {[%clk 00:02:52]} {[%emt 00:00:02]} 27.
Bxd6 {[%clk 00:00:48]} {[%emt 00:00:01]} Bb7 {[%clk 00:02:54]} {[%emt
00:00:02]} 28. Bc5 {[%clk 00:00:44]} {[%emt 00:00:06]} Bf6 {[%clk 00:02:33]}
{[%emt 00:00:24]} 29. Nd4 {[%clk 00:00:33]} {[%emt 00:00:15]} Bxd4 {[%clk
00:02:21]} {[%emt 00:00:14]} 30. Rxd4 {[%clk 00:00:36]} Bc8 {[%clk 00:02:17]}
{[%emt 00:00:07]} 31. Re4 {[%clk 00:00:30]} {[%emt 00:00:09]} Bd7 {[%clk
00:02:19]} {[%emt 00:00:02]} 32. Re7 {[%clk 00:00:28]} {[%emt 00:00:04]} Rb7
{[%clk 00:02:19]} {[%emt 00:00:02]} 33. f4 {[%clk 00:00:23]} {[%emt 00:00:09]}
h5 {[%clk 00:02:20]} {[%emt 00:00:02]} 34. Kf2 {[%clk 00:00:26]} {[%emt
00:00:01]} Kg7 {[%clk 00:02:19]} {[%emt 00:00:03]} 35. g4 {[%clk 00:00:18]}
{[%emt 00:00:11]} hxg4 {[%clk 00:02:19]} {[%emt 00:00:04]} 36. hxg4 {[%clk
00:00:20]} Kf6 {[%clk 00:02:13]} {[%emt 00:00:08]} 37. g5+ {[%clk 00:00:21]}
{[%emt 00:00:02]} Kg7 {[%clk 00:02:13]} {[%emt 00:00:03]} 38. Ke3 {[%clk
00:00:18]} {[%emt 00:00:06]} Kg8 {[%clk 00:02:03]} {[%emt 00:00:13]} 39. Kd4
{[%clk 00:00:20]} {[%emt 00:00:02]} Kg7 {[%clk 00:02:01]} {[%emt 00:00:04]} 40.
Ke5 {[%clk 00:00:22]} {[%emt 00:00:02]} Kg8 {[%emt 00:00:05]} 41. Ke4 1-0

[Event "7° Rencontres Internationales des Echecs Francophones"]
[Site "PARIS, France"]
[Date "2019.08.10"]
[Round "7.9"]
[White "Sochacki, Christophe"]
[Black "Le Quang, Kim"]
[Result "1-0"]
[TimeControl "90'+30' + 30seconds/move"]
[WhiteElo "2443"]
[BlackElo "2150"]

1. f4 {[%clk 00:05:05]} d5 {[%clk 00:05:04]} {[%emt 00:00:03]} 2. Nf3 {[%clk
00:05:06]} {[%emt 00:00:02]} g6 {[%clk 00:05:05]} 3. g3 {[%clk 00:05:05]}
{[%emt 00:00:04]} Bg7 {[%clk 00:05:07]} {[%emt 00:00:01]} 4. Bg2 {[%clk
00:05:07]} c5 {[%clk 00:04:52]} {[%emt 00:00:18]} 5. O-O {[%clk 00:05:08]}
{[%emt 00:00:02]} Nc6 {[%clk 00:04:54]} {[%emt 00:00:01]} 6. d3 {[%clk
00:05:10]} {[%emt 00:00:01]} Nf6 {[%clk 00:04:34]} {[%emt 00:00:23]} 7. Qe1
{[%clk 00:05:02]} {[%emt 00:00:11]} d4 {[%clk 00:04:23]} {[%emt 00:00:14]} 8.
c3 {[%clk 00:05:03]} {[%emt 00:00:02]} O-O {[%clk 00:04:23]} {[%emt 00:00:03]}
9. Na3 {[%clk 00:04:54]} {[%emt 00:00:13]} Rb8 {[%clk 00:04:17]} {[%emt
00:00:09]} 10. Nc4 {[%clk 00:04:43]} {[%emt 00:00:14]} b6 {[%clk 00:04:10]}
{[%emt 00:00:10]} 11. Nxd4 {[%clk 00:03:58]} {[%emt 00:00:47]} Nxd4 {[%clk
00:03:37]} {[%emt 00:00:36]} 12. cxd4 {[%clk 00:04:00]} cxd4 {[%clk 00:03:31]}
{[%emt 00:00:10]} 13. Ne5 {[%clk 00:03:39]} {[%emt 00:00:23]} Qd6 {[%clk
00:02:53]} {[%emt 00:00:41]} 14. f5 {[%clk 00:02:21]} {[%emt 00:01:22]} Nd5
{[%clk 00:02:05]} {[%emt 00:00:51]} 15. Nc4 {[%clk 00:02:16]} {[%emt 00:00:08]}
Qd8 {[%clk 00:01:58]} {[%emt 00:00:09]} 16. fxg6 {[%clk 00:02:16]} {[%emt
00:00:04]} hxg6 {[%clk 00:01:59]} {[%emt 00:00:02]} 17. Bg5 {[%clk 00:02:01]}
{[%emt 00:00:17]} Bb7 {[%clk 00:01:55]} {[%emt 00:00:08]} 18. Rc1 {[%clk
00:02:01]} {[%emt 00:00:03]} Qd7 {[%clk 00:01:41]} {[%emt 00:00:16]} 19. Qf2
{[%clk 00:01:55]} {[%emt 00:00:09]} Rbc8 {[%clk 00:01:31]} {[%emt 00:00:13]} 20.
h4 {[%clk 00:01:21]} {[%emt 00:00:37]} Ba8 {[%clk 00:01:19]} {[%emt 00:00:15]}
21. Kh2 {[%clk 00:01:19]} {[%emt 00:00:04]} Nf6 {[%clk 00:01:18]} {[%emt
00:00:05]} 22. Bxf6 {[%clk 00:00:55]} {[%emt 00:00:27]} Bxf6 {[%clk 00:01:17]}
{[%emt 00:00:04]} 23. Bh3 {[%clk 00:00:56]} {[%emt 00:00:02]} Qd5 {[%clk
00:01:04]} {[%emt 00:00:15]} 24. Bxc8 {[%clk 00:00:57]} {[%emt 00:00:03]} Rxc8
{[%clk 00:01:05]} {[%emt 00:00:02]} 25. Nxb6 {[%clk 00:00:52]} {[%emt
00:00:08]} axb6 {[%clk 00:00:34]} {[%emt 00:00:35]} 26. Rxc8+ {[%clk 00:00:54]}
Kg7 {[%clk 00:00:36]} 27. Qf3 {[%clk 00:00:51]} {[%emt 00:00:06]} Qxf3 {[%clk
00:00:30]} {[%emt 00:00:09]} 28. exf3 {[%clk 00:00:53]} {[%emt 00:00:02]} Bb7
{[%clk 00:00:27]} {[%emt 00:00:05]} 29. Rb8 {[%clk 00:00:54]} {[%emt 00:00:01]}
Ba6 {[%clk 00:00:29]} {[%emt 00:00:01]} 30. Rd1 {[%clk 00:00:53]} {[%emt
00:00:04]} b5 {[%clk 00:00:11]} {[%emt 00:00:21]} 31. Rb6 {[%clk 00:00:53]}
{[%emt 00:00:03]} Bc8 {[%clk 00:00:13]} {[%emt 00:00:01]} 32. Rxb5 {[%clk
00:00:54]} {[%emt 00:00:03]} Bd7 {[%clk 00:00:12]} {[%emt 00:00:02]} 33. Rc5
{[%clk 00:00:50]} {[%emt 00:00:07]} Be6 {[%clk 00:00:04]} {[%emt 00:00:12]} 34.
b4 {[%clk 00:00:32]} {[%emt 00:00:21]} Bxa2 {[%clk 00:00:06]} 35. b5 {[%clk
00:00:34]} {[%emt 00:00:02]} e6 {[%clk 00:00:08]} {[%emt 00:00:02]} 36. b6
{[%clk 00:00:35]} {[%emt 00:00:02]} Be7 {[%clk 00:00:09]} {[%emt 00:00:01]} 37.
b7 {[%clk 00:00:33]} {[%emt 00:00:06]} Bd6 {[%clk 00:00:11]} 38. Rc8 {[%clk
00:00:32]} {[%emt 00:00:04]} 1-0